bitfinex-derivatives/quotes_ETHF0:USTF0_20230403
["timestamp","ask_amount","ask_price","bid_price","bid_amount"]
[1680518702082,2.23692536,1809.4,1809.3,3.2078]
[1680518705189,1.40792536,1809.4,1809.3,3.2078]
[1680518705487,1.40792536,1809.4,1809.3,4.36625964]
[1680518706192,2.34830295,1809.4,1809.3,4.36625964]
[1680518706790,1.25481251,1809.4,1809.3,4.36625964]
[1680518706989,0.24591002,1809.4,1809.3,11.67651199]
[1680518707188,0.57919929,1809.6,1809.4,1.0]
[1680518707388,0.57919929,1809.6,1809.5,4.36657203]
[1680518707589,0.57919929,1809.6,1809.5,5.36657203]
[1680518708486,1.05127352,1809.6,1809.5,5.36657203]
[1680518708687,0.47207423,1809.6,1809.5,5.36657203]
[1680518708997,1.05127352,1809.6,1809.5,5.36657203]
[1680518709590,1.05127352,1809.6,1809.5,4.36657203]
[1680518709790,0.47207423,1809.6,1809.5,4.36657203]
[1680518710195,1.05127352,1809.6,1809.5,4.36657203]
[1680518710490,0.47207423,1809.6,1809.5,4.36657203]
[1680518711094,1.05127352,1809.6,1809.5,4.36657203]
[1680518711294,0.47207423,1809.6,1809.5,4.36657203]
[1680518712389,0.47207423,1809.6,1809.5,5.05188654]
[1680518712694,0.47207423,1809.6,1809.5,6.05188438]
[1680518713080,1.40419929,1809.7,1809.5,6.05188438]
[1680518713280,1.40419929,1809.7,1809.6,1.0]
[1680518714582,1.7979207,1809.7,1809.6,1.0]
[1680518714996,1.21872141,1809.7,1809.6,1.0]
[1680518715793,1.21872141,1809.7,1809.6,2.15877203]
[1680518716091,1.21872141,1809.7,1809.6,1.0]
[1680518716295,1.21872141,1809.7,1809.5,5.36657203]
[1680518716494,1.21872141,1809.7,1809.6,0.86863057]
[1680518716694,1.21872141,1809.7,1809.5,5.36657203]
[1680518717797,1.21872141,1809.7,1809.5,4.36657203]
[1680518717990,1.21872141,1809.7,1809.6,0.86863317]
[1680518718191,1.21872141,1809.7,1809.6,1.86863317]
[1680518718595,1.21872141,1809.7,1809.6,1.0]
[1680518718800,1.21872141,1809.7,1809.6,1.86855083]
[1680518719003,1.21872141,1809.7,1809.6,1.0]
[1680518719499,1.21872141,1809.7,1809.6,1.86855152]
[1680518719699,1.21872141,1809.7,1809.6,1.0]
[1680518719894,1.21872141,1809.7,1809.6,1.86854946]
[1680518721100,1.21872141,1809.7,1809.6,1.86847493]
[1680518722004,0.39372141,1809.7,1809.6,2.43237004]
[1680518722202,0.39372141,1809.7,1809.6,0.86847493]
[1680518722494,0.39372141,1809.7,1809.6,1.86847493]
[1680518722704,0.39372141,1809.7,1809.6,0.86847493]
[1680518723198,0.39372141,1809.7,1809.6,1.86847493]
[1680518725802,0.39372141,1809.7,1809.6,0.86847493]
[1680518729910,0.39372141,1809.7,1809.6,0.57876962]
[1680518730100,0.9729207,1809.7,1809.6,0.57876962]
[1680518732211,0.824,1809.6,1809.5,0.57876962]
[1680518732512,2.94887973,1809.6,1809.5,0.57876962]
[1680518734604,1.94887973,1809.6,1809.5,3.78656962]
[1680518742115,1.94887973,1809.6,1809.5,4.65504455]
[1680518742519,1.94887973,1809.6,1809.5,3.78656962]
[1680518744519,2.8176727,1809.6,1809.5,3.78656962]
[1680518744722,1.94887973,1809.6,1809.5,3.78656962]
[1680518745218,2.23886693,1809.6,1809.5,3.78656962]
[1680518745416,2.81753684,1809.6,1809.5,3.78656962]
[1680518747719,1.94874387,1809.6,1809.5,4.07627493]
[1680518747921,0.54607396,1809.6,1809.5,4.07627493]
[1680518748120,0.40229941,1809.6,1809.5,4.07627493]
[1680518748319,0.57866991,1809.7,1809.5,4.07627493]
[1680518748521,0.57866991,1809.7,1809.6,0.57911035]
[1680518748816,0.87202342,1809.7,1809.6,1.57911035]
[1680518749518,0.87202342,1809.7,1809.6,1.86847493]
[1680518752820,0.87202342,1809.7,1809.6,0.86847493]
[1680518757724,1.74081639,1809.7,1809.6,0.86847493]
[1680518757924,1.74112631,1809.7,1809.6,0.86847493]
[1680518758123,1.16214648,1809.7,1809.6,0.86847493]
[1680518759425,1.74111898,1809.7,1809.6,0.86847493]
[1680518759822,1.16214648,1809.7,1809.6,1.44779905]
[1680518760025,1.16214648,1809.7,1809.6,0.86847493]
[1680518760219,1.16214648,1809.7,1809.6,1.44782264]
[1680518760421,1.16214648,1809.7,1809.6,0.57934771]
[1680518760627,1.16214648,1809.7,1809.6,1.44782264]
[1680518760929,1.16214648,1809.7,1809.6,0.86847493]
[1680518762232,1.16214648,1809.7,1809.6,1.44782983]
[1680518762530,1.16214648,1809.7,1809.6,0.86847493]
[1680518763626,1.16214648,1809.7,1809.6,0.57936299]
[1680518764026,1.16214648,1809.7,1809.6,1.44783792]
[1680518764430,1.16214648,1809.7,1809.6,0.57936299]
[1680518765323,1.16214648,1809.7,1809.6,1.44783792]
[1680518765730,1.16214648,1809.7,1809.6,0.57936299]
[1680518766133,1.99114648,1809.7,1809.6,0.57936299]
[1680518766332,1.99114648,1809.7,1809.6,1.44783792]
[1680518769623,1.99114648,1809.7,1809.6,0.86847493]
[1680518770537,1.99114648,1809.7,1809.6,1.44795602]
[1680518771134,1.99114648,1809.7,1809.6,1.44796166]
[1680518771334,1.99114648,1809.7,1809.6,0.86847493]
[1680518771534,1.99114648,1809.7,1809.6,1.44796409]
[1680518772047,1.99114648,1809.7,1809.6,1.44797808]
[1680518772232,1.12235351,1809.7,1809.6,0.86847493]
[1680518772541,1.99128566,1809.7,1809.6,0.86847493]
[1680518772939,2.28086138,1809.7,1809.6,0.57956349]
[1680518774228,2.28086138,1809.7,1809.6,1.44803842]
[1680518775040,2.28086138,1809.7,1809.6,0.57956349]
[1680518775442,2.28086138,1809.7,1809.6,1.44803842]
[1680518776640,2.36765274,1809.7,1809.6,1.44803842]
[1680518777640,2.36765274,1809.7,1809.6,0.86847493]
[1680518780345,2.07826927,1809.7,1809.6,0.86847493]
[1680518781651,2.07829707,1809.7,1809.6,0.86847493]
[1680518782649,2.07829707,1809.7,1809.6,1.15877203]
[1680518782853,2.07829707,1809.7,1809.6,2.15877203]
[1680518784952,1.92336239,1809.7,1809.6,2.15877203]
[1680518788657,1.92336239,1809.7,1809.6,1.0]
[1680518788846,1.92336239,1809.7,1809.6,1.15877203]
[1680518789048,1.92336239,1809.7,1809.6,1.54740311]
[1680518789252,1.92336239,1809.7,1809.6,1.0]
[1680518789758,1.92336239,1809.7,1809.6,2.15877203]
[1680518789957,1.92336239,1809.7,1809.6,1.0]
[1680518790158,1.92336239,1809.7,1809.5,5.36657203]
[1680518790359,0.57939191,1809.6,1809.5,5.36657203]
[1680518790656,0.57939191,1809.6,1809.5,6.05191198]
[1680518791055,0.57939191,1809.6,1809.5,5.05191198]
[1680518791255,1.40139191,1809.6,1809.5,5.05191198]
[1680518791558,1.40139191,1809.6,1809.5,5.05192793]
[1680518792065,1.6911522,1809.6,1809.5,4.36657203]
[1680518792555,1.91038886,1809.6,1809.5,4.36657203]
[1680518794469,2.19974453,1809.6,1809.4,1.15877203]
[1680518794763,1.69613365,1809.5,1809.4,1.15877203]
[1680518796763,2.27548309,1809.5,1809.4,1.15877203]
[1680518797263,0.825,1809.5,1809.3,4.36657203]
[1680518797559,1.401323,1809.4,1809.3,4.36657203]
[1680518799579,0.579323,1809.4,1809.3,5.05197596]
[1680518799871,2.27330751,1809.5,1809.3,5.05197596]
[1680518800165,0.579323,1809.5,1809.3,5.19557203]
[1680518800364,0.579323,1809.5,1809.4,2.15877203]
[1680518802567,0.579323,1809.5,1809.4,2.84414023]
[1680518802873,0.79855966,1809.6,1809.4,3.13383324]
[1680518803168,0.79855966,1809.6,1809.5,5.36677712]
[1680518803669,0.79855966,1809.6,1809.5,6.19577712]
[1680518803871,0.579323,1809.6,1809.5,6.19577712]
[1680518805767,0.579323,1809.6,1809.5,6.88110278]
[1680518806466,0.579323,1809.6,1809.5,6.88110213]
[1680518807061,0.579323,1809.6,1809.5,6.19577712]
[1680518808164,0.95075249,1809.6,1809.5,6.19577712]
[1680518809074,0.95075249,1809.6,1809.5,5.19577712]
[1680518812172,0.95075249,1809.6,1809.5,4.36677712]
[1680518817070,1.77975249,1809.6,1809.5,4.36677712]
[1680518817971,1.77975249,1809.6,1809.5,3.2078]
[1680518817972,2.648737,1809.6,1809.5,3.2078]
[1680518818472,1.77975249,1809.6,1809.5,3.2078]
[1680518819179,2.648737,1809.6,1809.5,3.2078]
[1680518819583,1.77975249,1809.6,1809.5,4.36677712]
[1680518819780,2.648737,1809.6,1809.5,3.2078]
[1680518820281,1.77975249,1809.6,1809.5,4.36677712]
[1680518820674,1.77975249,1809.6,1809.5,3.2078]
[1680518821075,1.77975249,1809.6,1809.5,4.36677712]
[1680518821274,2.069414,1809.6,1809.5,3.2078]
[1680518821476,2.64886538,1809.6,1809.5,3.2078]
[1680518821670,2.069414,1809.6,1809.5,3.2078]
[1680518821877,4.01093736,1809.6,1809.5,0.57956297]
[1680518822776,3.18193736,1809.6,1809.5,0.57956297]
[1680518824175,3.18193736,1809.6,1809.4,0.57956297]
[1680518824374,2.69788086,1809.5,1809.4,0.57956297]
[1680518824585,2.11211618,1809.5,1809.4,0.57956297]
[1680518825382,2.11211618,1809.5,1809.3,4.36677712]
[1680518825585,1.40825998,1809.4,1809.3,4.36677712]
[1680518826785,0.829,1809.4,1809.3,4.36677712]
[1680518828691,1.8224953,1809.5,1809.3,4.36677712]
[1680518829193,1.24323532,1809.5,1809.4,1.15897712]
[1680518829387,1.24323532,1809.5,1809.4,2.15897712]
[1680518831086,1.24323532,1809.5,1809.4,2.84433981]
[1680518831984,0.41423532,1809.5,1809.4,2.84433981]
[1680518832189,0.41423532,1809.5,1809.4,3.95882773]
[1680518832388,0.57925998,1809.7,1809.4,3.95882773]
[1680518832594,0.57925998,1809.7,1809.6,4.36641314]
[1680518833092,0.26265311,1809.7,1809.6,4.36641314]
[1680518833292,0.84191309,1809.7,1809.6,4.36641314]
[1680518833595,0.57925998,1809.7,1809.6,5.36641314]
[1680518833793,2.27714084,1809.8,1809.6,5.36641314]
[1680518833991,2.27714084,1809.8,1809.7,1.0]
[1680518834704,1.69788086,1809.8,1809.7,1.0]
[1680518834884,2.27713386,1809.8,1809.7,1.0]
[1680518835084,1.69788086,1809.8,1809.7,1.0]
[1680518835393,2.27713712,1809.8,1809.7,1.0]
[1680518835594,1.69788086,1809.8,1809.7,1.0]
[1680518836097,2.27708855,1809.8,1809.7,1.0]
[1680518837394,2.53970853,1809.8,1809.7,1.0]
[1680518837795,1.67082767,1809.8,1809.7,1.0]
[1680518838392,2.53970853,1809.8,1809.7,1.0]
[1680518838599,1.67082767,1809.8,1809.7,1.0]
[1680518838890,1.67082767,1809.8,1809.6,5.90905937]
[1680518839089,2.53970853,1809.8,1809.7,0.57914567]
[1680518839297,2.53970853,1809.8,1809.7,1.57914567]
[1680518839496,2.53970853,1809.8,1809.7,1.57912793]
[1680518839692,1.67082767,1809.8,1809.7,1.0]
[1680518839894,1.67082767,1809.8,1809.7,1.57909027]
[1680518840093,1.67082767,1809.8,1809.7,1.0]
[1680518840492,1.67082767,1809.8,1809.7,1.579091]
[1680518840895,1.67082767,1809.8,1809.7,1.0]
[1680518841201,1.67082767,1809.8,1809.7,1.57909249]
[1680518841496,1.67082767,1809.8,1809.7,1.0]
[1680518841900,1.67082767,1809.8,1809.7,1.57905359]
[1680518842199,0.84182767,1809.8,1809.7,1.57905916]
[1680518842399,0.84182767,1809.8,1809.7,0.57905916]
[1680518842600,0.84182767,1809.8,1809.6,6.73005937]
[1680518842898,0.84182767,1809.8,1809.7,2.44729597]
[1680518843299,0.84182767,1809.8,1809.7,1.44729597]
[1680518843503,0.84182767,1809.8,1809.7,0.86843022]
[1680518845415,0.84182767,1809.8,1809.7,1.44733244]
[1680518845710,0.84182767,1809.8,1809.7,0.86843022]
[1680518847815,0.84182767,1809.8,1809.7,2.69743022]
[1680518848017,0.26261998,1809.8,1809.7,2.69743022]
[1680518848313,0.57920769,1809.9,1809.7,2.69743022]
[1680518848519,1.44808855,1809.9,1809.8,4.78657179]
[1680518849116,1.44808855,1809.9,1809.8,3.78657179]
[1680518849613,0.57920769,1809.9,1809.8,3.78657179]
[1680518852622,0.84171654,1809.9,1809.8,3.78657179]
[1680518864832,1.67071654,1809.9,1809.8,3.78657179]
[1680518865020,1.67071654,1809.9,1809.8,3.2078]
[1680518865422,2.5395974,1809.9,1809.8,3.2078]
[1680518865622,2.53913171,1809.9,1809.8,3.2078]
[1680518866622,1.96038971,1809.9,1809.8,3.2078]
[1680518867230,1.658,1809.8,1809.7,0.57877179]
[1680518867418,1.658,1809.8,1809.5,0.57877179]
[1680518867419,3.64150787,1809.8,1809.5,0.57877179]
[1680518867623,2.23684519,1809.6,1809.5,0.57877179]
[1680518868019,2.23684519,1809.6,1809.4,0.86843022]
[1680518868229,1.40784519,1809.5,1809.3,4.07623022]
[1680518872035,0.827,1809.4,1809.3,4.07623022]
[1680518874925,0.827,1809.4,1809.3,3.2078]
[1680518875235,0.827,1809.4,1809.3,4.07623022]
[1680518875438,0.827,1809.4,1809.3,3.2078]
[1680518877234,0.57884519,1809.5,1809.3,4.07623022]
[1680518877428,0.57884519,1809.6,1809.4,1.0]
[1680518877632,0.57884519,1809.7,1809.5,3.2078]
[1680518877835,0.829,1809.6,1809.5,3.2078]
[1680518878028,1.40784519,1809.6,1809.5,3.2078]
[1680518882035,2.23084519,1809.6,1809.5,3.2078]
[1680518882430,2.64521912,1809.6,1809.5,3.2078]
[1680518882632,2.06637393,1809.6,1809.5,3.2078]
[1680518883242,0.41437393,1809.6,1809.5,3.2078]
[1680518883742,1.40384519,1809.7,1809.5,3.2078]
[1680518884038,1.40384519,1809.7,1809.6,1.0]
[1680518884540,0.825,1809.7,1809.6,1.0]
[1680518886145,0.829,1809.8,1809.6,1.86843022]
[1680518886335,0.829,1809.8,1809.7,3.2078]
[1680518887038,0.57884519,1809.9,1809.7,4.0368]
[1680518887243,0.57884519,1810.0,1809.7,5.17223022]
[1680518887435,0.57884519,1810.0,1809.9,4.3048]
[1680518887635,7.42914314,1810.6,1810.0,6.618]
[1680518887636,1.44711297,1810.3,1810.0,6.618]
[1680518887841,0.57884519,1810.3,1810.2,4.3038]
[1680518888241,0.57884519,1810.3,1810.2,3.2078]
[1680518889939,2.54611297,1810.4,1810.2,3.2078]
[1680518890436,0.57884519,1810.3,1810.2,3.2078]
[1680518891243,2.67384519,1810.3,1810.2,3.2078]
[1680518891439,2.76096459,1810.3,1810.2,3.2078]
[1680518892040,1.76096459,1810.3,1810.2,3.2078]
[1680518902355,1.1821194,1810.3,1810.2,3.2078]
[1680518903649,1.76096459,1810.3,1810.2,3.2078]
[1680518903849,1.1821194,1810.3,1810.2,3.2078]
[1680518907457,1.76096459,1810.3,1810.2,3.2078]
[1680518908355,1.1821194,1810.3,1810.2,3.2078]
[1680518909269,1.76096459,1810.3,1810.2,3.2078]
[1680518909475,1.1821194,1810.3,1810.2,3.2078]
[1680518909768,0.0871194,1810.3,1810.2,3.2078]
[1680518910067,1.68384519,1810.4,1810.2,3.2078]
[1680518910361,0.09291191,1810.3,1810.2,3.2078]
[1680518910566,0.57884519,1810.5,1810.2,3.2078]
[1680518910754,0.57884519,1810.5,1810.4,3.2078]
[1680518911268,1.44711297,1810.5,1810.4,3.2078]
[1680518911469,0.57884519,1810.5,1810.4,3.2078]
[1680518912063,1.57884519,1810.5,1810.4,3.2078]
[1680518912266,2.54094659,1810.5,1810.4,3.2078]
[1680518912856,2.53916696,1810.5,1810.4,3.2078]
[1680518913063,1.9621014,1810.5,1810.4,3.2078]
[1680518913667,1.67091973,1810.5,1810.4,3.2078]
[1680518914270,2.53918751,1810.5,1810.4,3.2078]
[1680518914574,2.53921337,1810.5,1810.4,3.2078]
[1680518914768,3.64421337,1810.5,1810.4,3.2078]
[1680518914968,2.77594559,1810.5,1810.4,3.2078]
[1680518915166,3.64421337,1810.5,1810.4,3.2078]
[1680518915772,2.64421337,1810.5,1810.4,3.2078]
[1680518915972,2.0671014,1810.5,1810.4,3.2078]
[1680518916174,2.64434659,1810.5,1810.4,3.2078]
[1680518917369,2.0671014,1810.5,1810.4,3.2078]
[1680518917873,1.18883362,1810.5,1810.4,3.2078]
[1680518918072,1.76624886,1810.5,1810.4,3.2078]
[1680518918272,2.63451664,1810.5,1810.4,3.2078]
[1680518918472,1.76624886,1810.5,1810.4,3.2078]
[1680518918675,2.63451664,1810.5,1810.4,3.2078]
[1680518918873,1.76624886,1810.5,1810.4,3.2078]
[1680518920076,2.0571014,1810.5,1810.4,3.2078]
[1680518922682,1.18883362,1810.5,1810.4,3.2078]
[1680518922869,2.05586657,1810.5,1810.4,3.2078]
[1680518923073,1.18883362,1810.5,1810.4,3.2078]
[1680518923881,2.34734149,1810.5,1810.4,3.2078]
[1680518924179,2.34303021,1810.5,1810.4,3.2078]
[1680518926074,2.63091066,1810.5,1810.4,3.2078]
[1680518928476,2.64091066,1810.5,1810.4,3.2078]
[1680518931580,1.19452234,1810.5,1810.4,3.2078]
[1680518931775,2.64317442,1810.5,1810.4,3.2078]
[1680518935780,1.19452234,1810.5,1810.4,3.2078]
[1680518935980,1.19452234,1810.5,1810.4,3.2016035]
[1680518936182,1.19452234,1810.5,1810.4,3.19685756]
[1680518936686,1.19452234,1810.5,1810.4,3.19102628]
[1680518936888,1.19452234,1810.5,1810.4,3.1851288]
[1680518937090,1.19452234,1810.5,1810.4,3.17983982]
[1680518937286,1.19452234,1810.5,1810.4,3.17345548]
[1680518937487,2.64313881,1810.5,1810.4,3.16778989]
[1680518937891,2.64313881,1810.5,1810.4,3.1623886]
[1680518938097,2.64313881,1810.5,1810.4,3.15687724]
[1680518938294,2.64313881,1810.5,1810.4,3.15158195]
[1680518938594,2.64313881,1810.5,1810.4,3.14604982]
[1680518938783,2.64313881,1810.5,1810.4,3.14166426]
[1680518938987,2.64313881,1810.5,1810.4,3.13627578]
[1680518939387,2.64313881,1810.5,1810.4,3.13118109]
[1680518939588,1.19452234,1810.5,1810.4,3.12602176]
[1680518940293,2.64316765,1810.5,1810.4,3.12086185]
[1680518940495,2.64316765,1810.5,1810.4,3.11584451]
[1680518940688,1.19452234,1810.5,1810.4,3.11584451]
[1680518940997,1.19452234,1810.5,1810.4,3.10600594]
[1680518941190,1.19452234,1810.5,1810.4,3.10164126]
[1680518941496,1.19452234,1810.5,1810.4,3.09673255]
[1680518941697,1.19452234,1810.5,1810.4,3.09184236]
[1680518942099,1.19452234,1810.5,1810.4,3.08687343]
[1680518942297,1.19452234,1810.5,1810.4,3.08142232]
[1680518942501,1.19452234,1810.5,1810.4,3.07649838]
[1680518942799,1.19452234,1810.5,1810.4,3.07174714]
[1680518943002,1.19452234,1810.5,1810.4,3.06765538]
[1680518943303,1.19452234,1810.5,1810.4,3.06306709]
[1680518943496,1.19452234,1810.5,1810.4,3.05775213]
[1680518943691,1.19452234,1810.5,1810.4,3.05381084]
[1680518944097,1.19452234,1810.5,1810.4,3.04940208]
[1680518944300,1.19452234,1810.5,1810.4,3.04482693]
[1680518944498,1.19452234,1810.5,1810.4,3.04025191]
[1680518944700,2.64323976,1810.5,1810.4,3.04025191]
[1680518945003,2.64323976,1810.5,1810.4,3.03096239]
[1680518945394,2.64323976,1810.5,1810.4,3.02628688]
[1680518945599,1.19452234,1810.5,1810.4,3.02628688]
[1680518945799,1.19452234,1810.5,1810.4,3.02201488]
[1680518946102,1.19452234,1810.5,1810.4,3.017589]
[1680518946302,1.19452234,1810.5,1810.4,3.01424598]
[1680518946498,1.17211594,1810.5,1810.4,3.01008479]
[1680518946702,1.17211594,1810.5,1810.4,3.00593934]
[1680518946998,1.17211594,1810.5,1810.4,3.00180973]
[1680518947204,0.88911594,1810.5,1810.4,3.00180973]
[1680518947506,0.88911594,1810.5,1810.4,2.99708975]
[1680518951909,1.71511594,1810.5,1810.4,2.99708975]
[1680518952101,6.33614551,1810.5,1810.2,3.2078]
[1680518952303,0.822,1810.3,1810.2,3.2078]
[1680518952608,3.04624008,1810.3,1810.2,3.2078]
[1680518952800,2.04624008,1810.3,1810.2,3.2078]
[1680518953199,0.88692443,1810.3,1810.2,3.2078]
[1680518953799,2.04632449,1810.3,1810.2,3.2078]
[1680518954406,0.88692443,1810.3,1810.2,3.2078]
[1680518954909,2.04632435,1810.3,1810.2,3.2078]
[1680518955410,2.04632435,1810.3,1810.2,4.07623022]
[1680518955611,0.88692443,1810.3,1810.2,4.07623022]
[1680518955909,2.33608849,1810.3,1810.2,3.2078]
[1680518956301,0.88692443,1810.3,1810.2,4.07623022]
[1680518958200,2.33608849,1810.3,1810.2,3.2078]
[1680518958399,0.88692443,1810.3,1810.2,3.2078]
[1680518958612,2.33608849,1810.3,1810.2,3.2078]
[1680518959111,0.88692443,1810.3,1810.2,3.2078]
[1680518961216,2.33608849,1810.3,1810.2,3.2078]
[1680518961406,2.04647902,1810.3,1810.2,4.07623022]
[1680518961711,0.88692443,1810.3,1810.2,3.2078]
[1680518962312,0.88692443,1810.3,1810.2,4.07623022]
[1680518962614,0.88692443,1810.3,1810.2,3.2078]
[1680518964108,2.33608849,1810.3,1810.2,3.2078]
[1680518965214,0.88692443,1810.3,1810.2,3.2078]
[1680518965512,2.33608849,1810.3,1810.2,3.2078]
[1680518966815,0.88692443,1810.3,1810.2,3.2078]
[1680518968609,2.04644534,1810.3,1810.2,4.07623022]
[1680518970517,1.22442338,1810.3,1810.2,4.07623022]
[1680518971017,1.22442338,1810.3,1810.2,5.07623022]
[1680518972719,1.22442338,1810.3,1810.2,4.07623022]
[1680518978716,0.06492443,1810.3,1810.2,4.07623022]
[1680518979022,1.98749895,1810.4,1810.2,4.07623022]
[1680518979416,0.06448232,1810.3,1810.2,4.07623022]
[1680518979824,1.98749895,1810.4,1810.2,4.07623022]
[1680518980418,1.15949895,1810.4,1810.3,0.86843022]
[1680518981019,0.86939786,1810.4,1810.3,1.86843022]
[1680518987335,0.93498938,1810.4,1810.3,1.86843022]
[1680518989633,0.64471879,1810.4,1810.3,1.86843022]
[1680518990332,1.51411665,1810.4,1810.3,1.86843022]
[1680518990533,0.64471879,1810.4,1810.3,1.86843022]
[1680518990924,0.64471879,1810.4,1810.3,1.0]
[1680518991130,0.64471879,1810.4,1810.3,1.86667396]
[1680518991437,0.06559152,1810.4,1810.3,2.84362471]
[1680518992328,0.06559152,1810.4,1810.3,1.68501157]
[1680518992523,0.826,1810.5,1810.3,2.84029128]
[1680518992734,0.826,1810.5,1810.4,4.2078]
[1680518992927,0.826,1810.5,1810.4,5.07396911]
[1680518994937,0.827,1810.5,1810.4,4.07396911]
[1680518995135,2.69639786,1810.5,1810.3,0.5773949]
[1680518995337,2.23071853,1810.4,1810.3,0.5773949]
[1680518995631,3.23071853,1810.4,1810.3,0.5773949]
[1680518996434,4.10011639,1810.4,1810.3,0.5773949]
[1680518996633,3.52139786,1810.4,1810.2,4.65136401]
[1680518996832,1.40372902,1810.3,1810.2,0.5773949]
[1680518997137,1.077,1810.2,1809.9,0.57778427]
[1680518997331,1.40676481,1810.0,1809.9,0.57778427]
[1680518997835,1.40676481,1810.0,1809.8,4.65226068]
[1680518998038,2.22576481,1809.9,1809.8,3.78558427]
[1680518998230,2.22576481,1809.9,1809.8,0.57778427]
[1680518998436,3.22576481,1809.9,1809.8,0.57778427]
[1680518999038,3.22576481,1809.9,1809.7,0.57778427]
[1680518999235,1.826,1809.8,1809.7,0.57778427]
[1680519000745,0.826,1809.8,1809.7,0.57778427]
[1680519004438,1.826,1809.8,1809.6,0.57778427]
[1680519004642,0.822,1809.7,1809.6,0.57778427]
[1680519005942,0.822,1809.7,1809.5,1.44446068]
[1680519006143,0.31308205,1809.7,1809.6,0.57778427]
[1680519006445,1.13508205,1809.7,1809.6,0.57778427]
[1680519006748,1.13508205,1809.7,1809.5,1.44446068]
[1680519006940,0.827,1809.6,1809.5,1.44446068]
[1680519007146,0.827,1809.6,1809.5,0.57778427]
[1680519007450,0.827,1809.6,1809.5,0.86667641]
[1680519007745,0.827,1809.6,1809.5,1.86667641]
[1680519008947,0.827,1809.6,1809.5,0.86667641]
[1680519009143,0.827,1809.6,1809.5,1.44359708]
[1680519009346,0.827,1809.6,1809.5,0.86667641]
[1680519009749,0.827,1809.6,1809.5,0.57691317]
[1680519009951,0.827,1809.6,1809.5,1.44359066]
[1680519010152,0.827,1809.6,1809.5,2.44359066]
[1680519010447,0.827,1809.6,1809.5,2.44358626]
[1680519010649,0.827,1809.6,1809.5,1.57690985]
[1680519010953,0.827,1809.6,1809.5,1.44358626]
[1680519011251,0.827,1809.6,1809.5,0.57690985]
[1680519011752,0.827,1809.6,1809.5,1.44358626]
[1680519011953,0.827,1809.6,1809.5,0.57690985]
[1680519014151,1.16118416,1809.6,1809.5,0.57690985]
[1680519022759,1.16118416,1809.6,1809.5,1.57690985]
[1680519022961,1.16118416,1809.6,1809.5,0.57690985]
[1680519025852,0.33418416,1809.6,1809.5,1.57690985]
[1680519026251,0.822,1809.8,1809.5,1.57690985]
[1680519026460,0.822,1809.8,1809.7,3.2078]
[1680519027854,0.822,1809.8,1809.5,3.2078]
[1680519028053,0.827,1809.6,1809.5,3.2078]
[1680519028564,1.651,1809.6,1809.5,3.2078]
[1680519029061,1.98507822,1809.6,1809.5,3.2078]
[1680519029853,1.98507822,1809.6,1809.5,3.78470985]
[1680519030657,1.15907822,1809.6,1809.5,3.78470985]
[1680519032057,0.33407822,1809.6,1809.5,3.78470985]
[1680519032257,0.822,1809.7,1809.5,3.78470985]
[1680519032458,0.3340549,1809.6,1809.5,3.78470985]
[1680519032862,0.822,1809.7,1809.5,3.78470985]
[1680519033058,0.33404995,1809.6,1809.5,3.78470985]
[1680519036968,0.33404995,1809.6,1809.5,4.65138626]
[1680519037171,0.33404995,1809.6,1809.5,4.07447641]
[1680519037373,0.33404995,1809.6,1809.5,4.65181368]
[1680519037666,0.33404995,1809.6,1809.5,3.78513727]
[1680519037869,0.33404995,1809.6,1809.5,4.65181368]
[1680519038063,0.33404995,1809.6,1809.5,3.78513727]
[1680519038371,0.33404995,1809.6,1809.5,4.65181368]
[1680519039074,1.16104995,1809.6,1809.5,4.07447641]
[1680519041073,1.16104995,1809.6,1809.5,3.8931124]
[1680519041374,1.16104995,1809.6,1809.5,5.34157744]
[1680519043174,1.73981476,1809.6,1809.5,5.34157744]
[1680519052082,1.16104995,1809.6,1809.5,5.34157744]
[1680519052479,1.73981476,1809.6,1809.5,5.34157744]
[1680519054884,2.56581476,1809.6,1809.5,5.34157744]
[1680519057282,2.56481476,1809.6,1809.5,1.84428866]
[1680519057484,3.85419717,1809.6,1809.5,1.15897626]
[1680519057686,3.85419717,1809.6,1809.5,0.86949091]
[1680519057687,4.14357958,1809.6,1809.5,0.86949091]
[1680519058586,4.14357958,1809.6,1809.5,1.44887494]
[1680519059388,4.14357958,1809.6,1809.5,1.44884117]
[1680519059585,4.14357958,1809.6,1809.5,0.57935026]
[1680519062080,4.97157958,1809.6,1809.5,0.57935026]
[1680519064290,4.97157958,1809.6,1809.4,1.44884117]
[1680519064495,4.0950914,1809.5,1809.4,1.44884117]
[1680519064995,4.44001874,1809.5,1809.4,1.44884117]
[1680519065787,4.44001874,1809.5,1809.4,0.57935026]
[1680519065993,4.44001874,1809.5,1809.4,1.44884117]
[1680519066290,4.44001874,1809.5,1809.4,0.57935026]
[1680519066596,3.5711639,1809.5,1809.4,0.57935026]
[1680519067094,2.5711639,1809.5,1809.4,0.57679806]
[1680519070098,3.5711639,1809.5,1809.4,0.57679806]
[1680519072297,0.826,1809.4,1809.3,4.07729091]
[1680519072499,3.479,1809.4,1809.3,4.07729091]
[1680519072997,4.05823656,1809.4,1809.3,3.2078]
[1680519074194,4.53370841,1809.4,1809.3,3.2078]
[1680519076804,3.53370841,1809.4,1809.3,3.2078]
[1680519077999,4.09926391,1809.4,1809.3,3.2078]
[1680519084911,4.96811875,1809.4,1809.3,3.2078]
[1680519085314,4.38888219,1809.4,1809.1,3.2078]
[1680519085517,1.654,1809.2,1809.1,3.2078]
[1680519087209,1.654,1809.2,1809.1,4.07729091]
[1680519088013,1.654,1809.2,1809.1,3.2078]
[1680519089015,1.654,1809.2,1809.1,4.07729091]
[1680519089209,2.12937052,1809.2,1809.1,3.2078]
[1680519091219,2.12937052,1809.2,1809.1,4.07729091]
[1680519091812,2.12937052,1809.2,1809.1,3.2078]
[1680519092518,2.12937052,1809.2,1809.1,4.07729091]
[1680519099219,1.30337052,1809.2,1809.1,4.07729091]
[1680519099419,1.30337052,1809.2,1809.1,5.36677626]
[1680519100313,1.30337052,1809.2,1809.1,6.05222527]
[1680519100517,1.30337052,1809.2,1809.1,6.05223365]
[1680519102218,1.30337052,1809.2,1809.1,5.05223365]
[1680519102617,1.30337052,1809.2,1809.1,3.89325739]
[1680519103215,1.30337052,1809.2,1809.1,5.34172243]
[1680519103519,1.30337052,1809.2,1809.1,3.89325739]
[1680519104111,1.30337052,1809.2,1809.1,5.34172243]
[1680519104928,1.30237052,1809.2,1809.1,5.34172243]
[1680519105822,1.30237052,1809.2,1809.1,3.89325739]
[1680519106324,1.30237052,1809.2,1809.1,5.34172243]
[1680519108626,0.827,1809.2,1809.1,5.34172243]